bitfinex-derivatives/quotes_ETHF0:USTF0_20250101
["timestamp","ask_amount","ask_price","bid_price","bid_amount"]
[1735760441278,1.3278,3351.5,3350.9,0.29912]
[1735760441485,0.29911,3351.2,3350.9,0.29912]
[1735760441784,1.3278,3351.5,3350.7,0.29914]
[1735760441976,1.3278,3351.5,3350.6,0.4432]
[1735760441977,2.26731045,3351.1,3350.3,0.4417]
[1735760442183,0.29915,3350.6,3350.2,0.4602]
[1735760442491,0.29916,3350.5,3350.2,1.20708]
[1735760442682,0.74186,3350.5,3350.2,1.20708]
[1735760443485,0.74186,3350.5,3350.2,0.9079]
[1735760444584,0.29916,3350.5,3350.2,0.9079]
[1735760444785,0.4427,3351.0,3350.3,3.2078]
[1735760444981,3.2078,3351.1,3350.4,0.441]
[1735760445283,12.73779605,3351.6,3350.9,0.29912]
[1735760445284,0.29909,3351.3,3350.9,0.29912]
[1735760445480,0.29909,3351.3,3351.0,0.4505]
[1735760446377,0.29909,3351.3,3351.0,0.74961]
[1735760446577,0.4392,3351.4,3351.0,0.74961]
[1735760446786,0.4392,3351.4,3351.1,0.4421]
[1735760446989,0.73828,3351.4,3351.1,0.7412]
[1735760447393,0.4392,3351.4,3351.1,0.4421]
[1735760447585,0.2991,3351.2,3351.0,0.4505]
[1735760447884,0.29909,3351.3,3351.0,0.74961]
[1735760448294,0.2991,3351.2,3351.0,0.4505]
[1735760448486,0.4392,3351.4,3351.0,0.4505]
[1735760448883,0.2991,3351.2,3351.0,0.4505]
[1735760449592,0.4392,3351.4,3351.0,0.4505]
[1735760449799,0.29911,3351.1,3351.0,0.4505]
[1735760451487,2.70651045,3351.4,3350.6,0.4421]
[1735760451800,0.29915,3350.7,3350.5,0.4282]
[1735760452000,0.29913,3350.9,3350.5,0.72736]
[1735760452194,5.47511045,3351.1,3350.5,0.72736]
[1735760452693,5.47511045,3351.1,3350.6,0.29915]
[1735760452899,0.29912,3351.0,3350.6,0.76595]
[1735760453200,3.2078,3351.1,3350.6,0.76595]
[1735760453404,0.29913,3350.9,3350.6,0.76595]
[1735760453992,3.2078,3351.1,3350.6,0.4668]
[1735760454292,3.50691,3351.1,3350.8,0.29913]
[1735760456004,2.70651045,3351.4,3350.7,3.2078]
[1735760456005,0.4392,3351.4,3350.7,3.2078]
[1735760456300,0.4392,3351.4,3351.2,0.29909]
[1735760457596,0.73828,3351.4,3351.2,0.29909]
[1735760457791,0.73828,3351.4,3351.1,0.2991]
[1735760458696,0.73828,3351.4,3351.2,0.4362]
[1735760461803,0.29909,3351.3,3351.2,0.4362]
[1735760466410,0.29912,3351.0,3350.8,0.29913]
[1735760466707,0.29912,3351.0,3350.8,0.75923]
[1735760467009,0.29912,3350.9,3350.8,0.4601]
[1735760468807,0.29911,3351.1,3350.9,0.29912]
[1735760469804,0.427,3351.3,3350.8,0.4601]
[1735760470009,3.2078,3351.4,3351.3,0.29909]
[1735760470405,3.2078,3351.4,3351.3,41.09909]
[1735760470908,3.50688,3351.4,3351.3,40.8]
[1735760471107,3.2078,3351.4,3351.3,40.8]
[1735760471308,3.2078,3351.4,3351.3,41.09909]
[1735760473502,3.2078,3351.4,3351.3,0.29909]
[1735760474107,0.29906,3351.7,3351.1,40.8]
[1735760474314,3.2078,3351.8,3351.4,0.29908]
[1735760474506,3.2078,3351.8,3351.5,0.76456]
[1735760474507,0.29906,3351.7,3351.5,0.76456]
[1735760475311,0.29906,3351.6,3351.5,0.76456]
[1735760475514,0.29906,3351.7,3351.5,0.76456]
[1735760475810,3.2078,3351.8,3351.5,0.4655]
[1735760476012,3.2078,3351.8,3351.7,0.29905]
[1735760476416,3.50684,3351.8,3351.5,0.4655]
[1735760476708,3.50684,3351.8,3351.6,0.29906]
[1735760477209,3.2078,3351.8,3351.5,0.4655]
[1735760477806,3.2078,3351.8,3351.5,0.76457]
[1735760478011,0.29906,3351.6,3351.5,0.76457]
[1735760478210,3.2078,3351.8,3351.5,0.4655]
[1735760478410,0.29906,3351.7,3351.6,0.29906]
[1735760478610,0.29905,3351.7,3351.6,0.29906]
[1735760479411,3.50685,3351.8,3351.6,0.29906]
[1735760479618,0.29905,3351.7,3351.6,0.29906]
[1735760479816,3.2078,3351.8,3351.6,0.29906]
[1735760480018,3.50685,3351.8,3351.6,0.29906]
[1735760480314,3.50685,3351.8,3351.7,0.29905]
[1735760480509,3.2078,3351.8,3351.5,0.4655]
[1735760480715,0.29906,3351.7,3351.6,0.29906]
[1735760481820,0.29906,3351.6,3351.5,0.76457]
[1735760484116,0.29906,3351.7,3351.6,0.29906]
[1735760484318,0.29906,3351.6,3351.5,0.76457]
[1735760484619,0.29906,3351.6,3351.5,0.29907]
[1735760485122,0.29908,3351.4,3351.3,3.2078]
[1735760485522,0.29911,3351.1,3350.8,3.6481]
[1735760485714,0.8872,3351.3,3350.8,3.2078]
[1735760485920,0.29912,3350.9,3350.8,3.50693]
[1735760486118,3.6576,3351.0,3350.5,0.29915]
[1735760486315,0.29915,3350.6,3350.5,0.29915]
[1735760487422,0.29916,3350.5,3350.4,3.6509]
[1735760487720,0.29916,3350.5,3350.4,3.50697]
[1735760488321,0.29916,3350.5,3350.4,3.2078]
[1735760488725,0.29916,3350.5,3350.4,3.50697]
[1735760489015,3.6576,3351.0,3350.4,3.2078]
[1735760489209,0.4498,3351.0,3350.9,0.29912]
[1735760489520,0.74892,3351.0,3350.9,0.29912]
[1735760490213,0.4498,3351.0,3350.9,0.29912]
[1735760490516,0.29912,3350.9,3350.6,0.29915]
[1735760490716,0.4498,3351.0,3350.7,0.29914]
[1735760490918,0.4498,3351.0,3350.4,3.2078]
[1735760491225,0.74892,3351.0,3350.8,0.29913]
[1735760491926,0.74892,3351.0,3350.8,41.09913]
[1735760492621,0.4498,3351.0,3350.9,0.29912]
[1735760495021,1.18629,3351.3,3350.8,40.8]
[1735760495223,0.2991,3351.2,3351.0,0.29912]
[1735760496224,1.3363,3351.3,3350.9,0.8541]
[1735760496425,1.3363,3351.3,3351.2,0.2991]
[1735760496826,1.63539,3351.3,3351.1,0.2991]
[1735760497330,0.2991,3351.2,3351.0,0.29911]
[1735760497527,1.63539,3351.3,3351.1,0.29911]
[1735760498429,1.3363,3351.3,3351.2,0.2991]
[1735760498729,1.63539,3351.3,3351.1,0.2991]
[1735760499427,0.29911,3351.1,3350.9,0.29912]
[1735760499623,0.2991,3351.2,3350.9,0.29912]
[1735760500026,1.3363,3351.3,3350.6,3.2078]
[1735760500226,0.29911,3351.1,3350.9,0.29912]
[1735760500924,0.29912,3351.0,3350.8,0.29913]
[1735760501328,0.29913,3350.8,3350.6,3.50695]
[1735760501518,1.19044,3350.7,3350.6,3.2078]
[1735760502227,1.19044,3350.7,3350.6,3.50695]
[1735760502729,1.19044,3350.7,3350.6,3.2078]
[1735760502931,1.19044,3350.7,3350.5,0.29916]
[1735760503132,0.4326,3350.6,3350.5,0.29916]
[1735760507930,0.73175,3350.6,3350.5,0.29916]
[1735760508332,0.4326,3350.6,3350.5,0.29916]
[1735760510934,0.73175,3350.6,3350.5,0.29916]
[1735760515829,0.4326,3350.6,3350.5,0.29916]
[1735760518441,0.4326,3350.6,3350.5,41.09916]
[1735760521040,0.73175,3350.6,3350.5,41.09916]
[1735760521237,0.4326,3350.6,3350.5,41.09916]
[1735760521438,0.74781,3351.1,3351.0,0.29912]
[1735760521632,1.17901,3351.1,3351.0,0.29912]
[1735760523140,3.2078,3351.7,3350.9,3.2078]
[1735760523442,0.4312,3351.6,3351.5,0.29907]
[1735760524437,0.73026,3351.6,3351.5,0.29907]
[1735760526545,0.73026,3351.6,3351.3,0.4377]
[1735760526847,0.73026,3351.6,3351.4,0.29907]
[1735760528946,0.73026,3351.6,3351.3,0.4377]
[1735760529146,0.73026,3351.6,3351.5,0.29907]
[1735760529548,0.4312,3351.6,3351.5,0.29907]
[1735760529744,0.73026,3351.6,3351.5,0.29907]
[1735760530951,0.73026,3351.6,3351.4,0.29908]
[1735760531644,0.29907,3351.5,3351.4,0.29908]
[1735760532151,0.73027,3351.6,3351.4,0.29908]
[1735760532546,0.29907,3351.5,3351.4,0.29908]
[1735760533149,0.29908,3351.4,3351.2,0.29909]
[1735760534250,0.29908,3351.4,3351.3,0.29909]
[1735760534651,0.29908,3351.4,3351.0,0.4554]
[1735760534949,0.29908,3351.4,3351.3,0.29909]
[1735760536154,0.4312,3351.6,3351.4,0.29908]
[1735760536155,0.29907,3351.5,3351.4,0.29908]
[1735760536950,0.4312,3351.6,3351.3,0.29909]
[1735760537151,0.29907,3351.5,3351.4,0.29908]
[1735760537353,0.73027,3351.6,3351.4,0.29908]
[1735760537555,0.29907,3351.5,3351.4,0.29908]
[1735760537953,0.4312,3351.6,3351.5,0.29907]
[1735760541955,0.73026,3351.6,3351.5,0.29907]
[1735760542154,0.4312,3351.6,3351.5,0.29907]
[1735760542554,0.73026,3351.6,3351.5,0.29907]
[1735760542953,0.29907,3351.5,3351.4,3.50687]
[1735760543158,0.29907,3351.5,3351.4,0.29907]
[1735760545456,0.4312,3351.6,3351.1,0.2991]
[1735760545457,0.2991,3351.2,3351.1,0.2991]
[1735760545656,0.4312,3351.6,3351.0,3.6632]
[1735760545858,0.29909,3351.3,3351.2,0.29909]
[1735760546157,0.4312,3351.6,3351.0,3.6632]
[1735760546458,0.29909,3351.3,3351.0,3.6632]
[1735760546660,0.29909,3351.3,3351.1,0.29911]
[1735760547162,0.29909,3351.3,3351.2,0.2991]
[1735760547957,0.4312,3351.6,3351.0,3.6632]
[1735760548262,0.29908,3351.5,3351.4,0.29907]
[1735760549168,0.29906,3351.7,3351.6,0.29905]
[1735760549758,3.50685,3351.8,3351.7,0.29905]
[1735760550458,0.29905,3351.8,3351.7,0.29905]
[1735760552155,0.29904,3351.9,3351.7,0.29905]
[1735760552548,1.355,3352.0,3351.7,0.29905]
[1735760552948,1.355,3352.0,3351.8,0.29904]
[1735760553257,0.29906,3351.7,3351.6,0.29906]
[1735760554766,1.355,3352.0,3351.4,3.2078]
[1735760554955,0.29905,3351.8,3351.7,0.29905]
[1735760555159,0.29905,3351.7,3351.6,0.29906]
[1735760558163,0.29905,3351.8,3351.6,0.29906]
[1735760558665,1.355,3352.0,3351.4,3.2078]
[1735760559166,0.446,3352.0,3351.9,0.29903]
[1735760559367,3.2078,3352.2,3351.6,0.74765]
[1735760559563,3.50681,3352.2,3352.1,0.29902]
[1735760560256,0.29902,3352.1,3352.0,0.29902]
[1735760560456,3.2078,3352.2,3352.0,0.29902]
[1735760560656,3.2078,3352.2,3352.1,0.29902]
[1735760561059,3.50681,3352.2,3352.1,0.29902]
[1735760561758,3.50681,3352.2,3352.0,0.29902]
[1735760562664,0.29901,3352.2,3352.0,0.29902]
[1735760563364,0.29902,3352.1,3351.9,0.29903]
[1735760563866,5.47511045,3352.3,3351.6,0.8632]
[1735760564164,0.29905,3351.8,3351.6,1.16226]
[1735760564368,0.74753,3352.2,3351.6,1.16226]
[1735760564661,0.74753,3352.2,3351.1,6.1188]
[1735760564662,3.2078,3351.9,3351.1,6.1188]
[1735760564858,2.26731045,3351.7,3351.1,7.0138]
[1735760565060,0.29909,3351.3,3351.2,0.29909]
[1735760566668,0.29906,3351.6,3351.1,4.4019]
[1735760566866,2.26731045,3351.7,3351.1,4.4019]
[1735760566867,0.29909,3351.3,3351.1,4.4019]
[1735760567971,0.29909,3351.3,3351.2,0.2991]
[1735760568470,0.29909,3351.4,3351.2,0.2991]
[1735760568772,0.29909,3351.3,3351.2,0.2991]
[1735760569269,0.29909,3351.4,3351.2,0.2991]
[1735760569670,0.29909,3351.4,3351.3,0.29909]
[1735760570171,4.5267,3351.8,3351.2,0.29909]
[1735760570474,0.29909,3351.4,3351.2,0.29909]
[1735760570662,0.4668,3351.3,3351.2,0.29909]
[1735760570869,0.4668,3351.3,3351.2,41.09909]
[1735760571975,0.76589,3351.3,3351.2,41.09909]
[1735760572176,0.4668,3351.3,3351.2,41.09909]
[1735760572874,0.76589,3351.3,3351.2,41.09909]
[1735760576877,0.76589,3351.3,3351.2,0.29909]
[1735760577076,0.29911,3351.1,3351.0,3.2078]
[1735760577285,0.9094,3351.2,3350.8,0.4326]
[1735760577573,0.29912,3351.0,3350.9,0.29912]
[1735760579279,0.29911,3351.1,3351.0,0.29912]
[1735760579677,0.29912,3351.0,3350.9,0.29912]
[1735760581778,0.29911,3351.1,3351.0,0.29911]
[1735760582677,0.9094,3351.2,3350.8,0.4326]
[1735760582678,1.2085,3351.2,3350.8,0.4326]
[1735760582982,0.4668,3351.3,3351.2,0.2991]
[1735760584383,0.4658,3351.6,3351.4,0.29907]
[1735760584582,0.29907,3351.5,3351.4,0.29907]
[1735760585189,0.76487,3351.6,3351.2,0.459]
[1735760585383,0.76487,3351.6,3351.4,3.50687]
[1735760585881,0.76487,3351.6,3351.4,0.29907]
[1735760586285,0.4658,3351.6,3351.4,0.29907]
[1735760586484,0.29907,3351.5,3351.4,0.29907]
[1735760586685,0.76487,3351.6,3351.4,0.29907]
[1735760588188,0.29907,3351.5,3351.3,0.29908]
[1735760589694,0.72347,3351.5,3351.3,0.29908]
[1735760590094,0.72347,3351.5,3351.4,0.29908]
[1735760592494,0.4658,3351.6,3351.5,0.29907]
[1735760592692,4.0941,3352.0,3351.9,0.29903]
[1735760593091,4.5518,3352.0,3351.9,0.29903]
[1735760593796,4.1026,3352.0,3351.9,0.29903]
[1735760594995,4.1026,3352.0,3351.8,0.462]
[1735760595205,4.40163,3352.0,3351.8,0.76104]
[1735760596702,0.29903,3351.9,3351.8,0.76104]
[1735760596901,4.40163,3352.0,3351.8,0.76104]
[1735760597900,4.1026,3352.0,3351.8,0.462]
[1735760598100,4.1026,3352.0,3351.9,0.29903]
[1735760599206,4.40163,3352.0,3351.9,0.29903]
[1735760599704,4.1026,3352.0,3351.8,0.462]
[1735760600004,0.29903,3351.9,3351.8,0.462]
[1735760600202,0.29903,3351.9,3351.8,0.76104]
[1735760600907,4.1026,3352.0,3351.8,0.462]
[1735760601108,4.1026,3352.0,3351.9,0.29903]
[1735760602199,3.6655,3352.0,3351.9,0.29903]
[1735760602808,3.6655,3352.0,3351.9,0.72153]
[1735760603506,3.2078,3352.0,3351.9,0.72153]
[1735760604602,0.4675,3352.2,3351.9,0.4225]
[1735760604801,0.4675,3352.2,3352.1,0.29902]
[1735760605606,0.4675,3352.2,3352.1,0.73332]
[1735760607198,0.4589,3352.4,3352.1,0.73332]
[1735760607406,0.4589,3352.4,3352.3,0.299]
[1735760607704,0.72418,3352.5,3352.3,0.299]
[1735760607905,0.4252,3352.5,3352.1,0.4343]
[1735760608106,0.4252,3352.5,3352.4,0.29899]
[1735760608407,1.79541155,3352.5,3352.4,0.29899]
[1735760609010,1.49643155,3352.5,3352.3,0.299]
[1735760609308,1.79542155,3352.5,3352.3,0.299]
[1735760609705,1.49643155,3352.5,3352.3,0.299]
[1735760609898,0.29899,3352.4,3352.3,0.299]
[1735760610104,0.4252,3352.5,3352.4,0.29899]
[1735760610511,3.2078,3352.6,3352.1,1.50553155]
[1735760610812,3.2078,3352.6,3352.5,0.29898]
[1735760611017,0.4319,3352.7,3352.3,3.2078]
[1735760611310,0.4319,3352.7,3352.6,0.29897]
[1735760611814,0.73086,3352.7,3352.6,0.29897]
[1735760612211,0.4319,3352.7,3352.6,0.29897]
[1735760620518,0.73086,3352.7,3352.6,0.29897]
[1735760623226,0.4319,3352.7,3352.6,0.29897]
[1735760623413,0.73086,3352.7,3352.6,0.29897]
[1735760625323,0.4319,3352.7,3352.6,0.29897]
[1735760626228,0.73086,3352.7,3352.6,0.29897]
[1735760626622,0.4319,3352.7,3352.6,0.29897]
[1735760626819,0.73086,3352.7,3352.6,0.29897]
[1735760627428,0.4319,3352.7,3352.6,0.29897]
[1735760627625,0.29894,3353.0,3352.5,2.27967155]
[1735760627820,0.4384,3353.0,3352.9,0.29894]
[1735760628624,0.73734,3353.0,3352.8,0.29895]
[1735760629222,0.73734,3353.0,3352.9,0.29895]
[1735760629425,0.4384,3353.0,3352.9,0.29895]
[1735760631023,0.4384,3353.0,3352.5,0.461]
[1735760631224,1.37018155,3352.9,3352.7,0.29896]
[1735760631428,0.29895,3352.8,3352.7,0.29896]
[1735760632931,0.29896,3352.7,3352.6,0.29897]
[1735760633131,0.73376,3352.7,3352.6,0.29897]
[1735760634030,0.4348,3352.7,3352.6,0.29897]
[1735760634334,0.4348,3352.7,3352.4,0.9259]
[1735760634533,3.2078,3352.5,3351.8,1.07123155]
[1735760634734,0.29902,3352.1,3351.9,1.64083]
[1735760634935,0.29901,3352.2,3352.0,0.29902]
[1735760635137,0.299,3352.3,3352.1,0.29902]
[1735760635529,0.4282,3352.2,3352.1,0.29902]
[1735760635730,0.299,3352.4,3352.0,1.07123155]
[1735760635930,0.299,3352.4,3352.2,0.29901]
[1735760636133,0.4282,3352.5,3352.4,0.29899]
[1735760636831,0.4282,3352.5,3352.4,1.19189]
[1735760638739,0.4348,3352.7,3352.5,0.29897]
[1735760638934,0.4348,3352.7,3352.4,0.8929]
[1735760639142,0.4348,3352.7,3352.6,0.29897]
[1735760639439,1.50603155,3352.7,3352.6,0.29897]
[1735760639630,1.50603155,3352.7,3352.5,41.09898]
[1735760639830,1.50603155,3352.7,3352.5,40.8]
[1735760640036,1.50603155,3352.7,3352.6,0.29897]
[1735760641038,1.50603155,3352.7,3352.5,41.09898]
[1735760641232,1.50603155,3352.7,3352.5,40.8]
[1735760641436,1.50603155,3352.7,3352.6,0.29897]
[1735760642034,0.4669,3352.8,3352.5,40.8]
[1735760642333,0.4669,3352.8,3352.7,0.29896]
[1735760643334,4.27903155,3353.0,3352.6,0.29897]
[1735760643638,4.27903155,3353.0,3352.8,0.29895]
[1735760645238,4.27903155,3353.0,3352.9,0.29895]
[1735760646543,1.07123155,3353.0,3352.9,0.29895]
[1735760647642,0.4386,3353.2,3353.1,0.29893]
[1735760647840,0.73752,3353.2,3353.0,0.29893]
[1735760648146,0.4386,3353.2,3353.1,0.29893]
[1735760648445,0.73753,3353.2,3353.0,0.29893]
[1735760648848,0.29893,3353.1,3353.0,0.29893]
[1735760649645,0.29893,3353.1,3352.9,0.4648]
[1735760649841,1.07123155,3353.1,3352.9,0.76374]
[1735760650043,0.29894,3353.0,3352.9,0.76374]
[1735760651442,0.4386,3353.2,3352.9,0.4648]
[1735760651753,0.29891,3353.3,3353.2,0.29892]
[1735760651934,0.74731,3353.3,3353.2,0.29892]
[1735760652140,0.4484,3353.3,3353.2,0.29892]
[1735760652441,3.2078,3353.4,3353.3,0.29891]
[1735760652642,0.4514,3353.5,3353.4,0.2989]
[1735760652948,3.2078,3354.0,3353.4,2.28357155]
[1735760653141,0.4514,3353.9,3353.8,0.29887]
[1735760653341,0.4514,3353.9,3353.8,1.37010155]
[1735760653541,3.2078,3354.0,3353.6,1.07123155]
[1735760653850,3.2078,3354.0,3353.9,0.29886]
[1735760654035,0.4514,3354.1,3354.0,0.29885]
[1735760654235,3.2078,3354.5,3353.9,0.4353]
[1735760654441,0.75021,3354.4,3354.2,0.29883]
[1735760655245,0.75021,3354.4,3354.0,1.53303155]
[1735760655246,0.29883,3354.2,3354.0,0.76064]
[1735760655549,0.4514,3354.4,3354.2,0.29883]
[1735760655746,0.29882,3354.3,3354.1,0.29883]
[1735760655943,1.64282,3354.4,3354.0,1.53303155]
[1735760656139,1.344,3354.4,3354.1,0.29884]
[1735760656349,0.29884,3354.2,3354.0,0.4618]
[1735760656648,0.29882,3354.3,3354.0,0.76064]
[1735760656945,1.344,3354.4,3354.0,0.4618]
[1735760657147,0.29886,3354.2,3354.0,0.76067]
[1735760657345,0.29886,3354.2,3353.9,0.4353]
[1735760657346,0.29887,3354.1,3353.9,0.29888]
[1735760657546,0.29886,3354.2,3353.8,3.2078]
[1735760657847,0.4625,3354.0,3353.9,0.29889]
[1735760658339,5.93081911,3354.0,3353.6,2.911]
[1735760658551,0.29892,3353.6,3353.5,0.29892]
[1735760658740,0.29894,3353.3,3353.2,0.29894]
[1735760659541,1.3275,3353.5,3353.0,40.8]
[1735760659746,0.29893,3353.4,3353.3,0.29894]
[1735760660043,1.62643,3353.5,3353.3,0.29893]
[1735760660243,0.29893,3353.4,3353.3,0.29893]
[1735760661948,0.29893,3353.4,3353.0,40.8]
[1735760661949,1.62643,3353.5,3353.4,0.29893]
[1735760664852,1.3275,3353.5,3353.4,0.29893]
[1735760665049,1.3275,3353.5,3353.0,41.54742]
[1735760665050,3.2078,3353.6,3353.1,2.26051911]
[1735760665248,0.4535,3353.9,3353.8,0.2989]
[1735760666251,0.4535,3353.9,3353.4,0.4608]
[1735760666452,0.75239,3353.9,3353.7,0.2989]
[1735760667045,0.75239,3353.9,3353.8,0.2989]
[1735760667555,0.4535,3353.9,3353.8,0.2989]
[1735760669253,0.75239,3353.9,3353.8,0.2989]
[1735760669754,0.4535,3353.9,3353.2,3.6671]
[1735760669957,0.29891,3353.7,3353.6,0.29891]
[1735760670157,0.4535,3353.9,3353.2,4.1276]
[1735760670346,0.29891,3353.7,3353.6,0.29891]
[1735760672154,0.4535,3353.9,3353.2,3.6683]
[1735760672355,0.29894,3353.4,3353.3,0.29893]
[1735760672656,0.29894,3353.3,3353.2,3.50674]
[1735760672858,0.29894,3353.3,3353.2,0.29894]
[1735760673257,1.58804,3353.3,3353.2,0.29894]
[1735760674949,1.2891,3353.3,3353.0,40.8]
[1735760675155,0.29896,3353.1,3352.8,0.29898]
[1735760675365,0.29898,3352.9,3352.8,0.29898]
[1735760675659,0.29898,3352.9,3352.8,41.09898]
[1735760676262,0.29898,3352.9,3352.8,40.8]
[1735760676558,0.29898,3352.9,3352.1,3.2078]
[1735760676559,0.74746,3352.9,3352.1,3.2078]
[1735760676854,0.29902,3352.4,3352.3,0.29902]
[1735760677060,0.29902,3352.5,3352.4,0.29902]
[1735760677850,0.29902,3352.4,3352.3,41.09903]
[1735760678055,0.4691,3352.4,3352.3,41.09903]
[1735760679659,0.76812,3352.4,3352.3,40.8]
[1735760681055,0.29903,3352.3,3352.1,0.29904]
[1735760681265,0.451,3352.3,3351.8,0.4269]
[1735760681458,0.451,3352.3,3352.2,0.29904]
[1735760683063,3.2078,3352.6,3352.5,0.29901]
[1735760683263,3.5068,3352.6,3352.5,0.29901]
[1735760683565,3.5068,3352.6,3352.5,41.09901]
[1735760683755,3.5068,3352.6,3352.5,40.8]
[1735760683960,3.2078,3352.6,3352.3,0.29902]
[1735760684261,0.29902,3352.5,3352.3,0.29902]
[1735760684469,0.29901,3352.5,3352.4,40.8]
[1735760685663,3.2078,3352.6,3352.4,40.8]
[1735760685964,3.2078,3352.6,3352.5,0.29901]
[1735760686165,3.5068,3352.6,3352.4,41.09901]
[1735760686861,3.2078,3352.6,3352.5,0.29901]
[1735760687469,3.2078,3352.6,3352.5,1.19181]
[1735760687769,1.3446,3352.7,3352.6,0.299]
[1735760688268,0.4301,3352.7,3352.6,0.299]
[1735760689669,0.72909,3352.7,3352.6,0.299]
[1735760690369,0.72909,3352.7,3352.5,0.7431]
[1735760690856,0.72909,3352.7,3352.5,0.4441]
[1735760691059,0.72909,3352.7,3352.5,0.74311]
[1735760691567,0.72909,3352.7,3352.5,0.4441]
[1735760691771,0.72909,3352.7,3352.5,0.74311]
[1735760692462,0.72909,3352.7,3352.6,0.299]
[1735760692667,0.72909,3352.7,3352.5,0.7431]
[1735760692864,0.72909,3352.7,3351.6,13.00562698]
[1735760692865,3.2078,3352.6,3351.6,13.00562698]
[1735760693069,0.29902,3352.4,3352.2,0.29903]
[1735760693268,0.29902,3352.4,3351.9,0.8992]
[1735760693563,0.443,3352.3,3352.2,0.29904]
[1735760695469,0.74203,3352.3,3352.2,0.29904]
[1735760695667,0.443,3352.3,3352.2,0.29904]
[1735760698774,0.74203,3352.3,3352.2,0.29904]
[1735760700376,0.443,3352.3,3352.2,0.29904]
[1735760700579,0.74203,3352.3,3352.2,0.29904]
[1735760700779,0.443,3352.3,3352.2,0.29904]
[1735760701074,0.75732,3352.5,3352.4,0.29902]
[1735760701279,3.2078,3352.6,3352.0,3.2078]
[1735760701477,3.2078,3352.6,3352.5,0.29901]
[1735760701677,0.29899,3352.8,3352.3,1.58934824]
[1735760701878,0.29899,3352.8,3352.7,0.29899]
[1735760702583,0.29899,3352.8,3352.7,1.88833824]
[1735760703178,3.2078,3353.1,3352.7,1.58934824]
[1735760703378,0.29898,3353.0,3352.9,0.29897]
[1735760703683,3.2078,3353.1,3352.9,0.29897]
[1735760703684,3.50677,3353.1,3353.0,0.29897]
[1735760704184,3.2078,3353.1,3353.0,0.73887]
[1735760704685,3.2078,3353.1,3353.0,1.16137]
[1735760704886,0.4513,3353.4,3353.3,0.29894]
[1735760705785,0.4513,3353.4,3353.3,1.88828824]
[1735760706175,3.50672,3353.6,3353.4,0.29893]
[1735760706877,3.50672,3353.6,3353.5,1.58934824]
[1735760707886,3.2078,3353.6,3353.5,1.88826824]
[1735760708895,3.2078,3354.0,3353.6,0.29891]
[1735760709192,3.2078,3354.0,3353.9,0.29889]
[1735760709790,3.2078,3354.0,3353.9,1.88823824]
[1735760713599,3.2078,3354.0,3353.9,4.14875735]
[1735760713897,3.2078,3354.5,3354.3,0.29885]
[1735760714891,3.2078,3354.5,3354.4,1.58934824]
[1735760715097,5.76714911,3354.5,3354.4,1.58934824]
[1735760716199,3.2078,3354.5,3354.4,1.88818824]
[1735760716394,0.4619,3354.7,3354.6,0.29882]
[1735760717099,0.4619,3354.7,3354.6,1.88816824]
[1735760719500,0.76072,3354.7,3354.6,1.58934824]
[1735760721798,0.76072,3354.7,3354.6,0.88564824]
[1735760722102,0.29888,3354.0,3353.8,0.2989]
[1735760722302,3.2078,3353.9,3353.8,0.2989]
[1735760722703,0.2989,3353.8,3353.6,0.29891]
[1735760722903,0.29891,3353.7,3353.5,0.73772]
[1735760723109,0.2989,3353.8,3353.6,0.29891]
[1735760723298,3.2078,3353.9,3353.5,0.4388]
[1735760723602,3.2078,3353.9,3353.8,0.2989]
[1735760726203,0.2989,3353.8,3353.6,41.09891]
[1735760726502,3.2078,3353.9,3353.6,40.8]
[1735760726503,3.6423,3353.9,3353.6,40.8]
[1735760726806,3.94119,3353.9,3353.7,0.2989]
[1735760726995,3.94119,3353.9,3353.6,40.8]
[1735760727199,3.6423,3353.9,3353.8,0.2989]
[1735760727399,3.2078,3353.9,3353.8,0.2989]
[1735760728004,3.2078,3353.9,3353.6,40.8]
[1735760728205,3.2078,3353.9,3353.8,0.2989]
[1735760728503,3.2078,3353.9,3353.6,40.8]
[1735760728704,0.2989,3353.7,3353.6,41.09891]
[1735760729011,0.2989,3353.8,3353.6,41.09891]
[1735760729210,0.2989,3353.8,3353.6,40.8]
[1735760729410,0.2989,3353.8,3353.7,0.2989]
[1735760730903,0.2989,3353.8,3353.6,40.8]
[1735760731209,0.2989,3353.7,3353.6,40.8]
[1735760731407,0.7558,3353.7,3353.6,40.8]
[1735760732107,0.7558,3353.7,3353.3,0.29894]
[1735760732108,0.4569,3353.7,3353.3,0.29894]
[1735760732404,3.50674,3353.4,3353.2,0.9044]
[1735760732607,3.50674,3353.4,3353.3,40.8]
[1735760732808,3.2078,3353.4,3353.3,41.09894]
[1735760733814,0.29892,3353.6,3353.4,0.29892]
[1735760734311,0.4569,3353.7,3353.4,0.29892]
[1735760734511,0.29892,3353.5,3353.4,0.29892]
[1735760734710,0.4569,3353.7,3353.4,0.29892]
[1735760734909,0.29892,3353.6,3353.4,0.29892]
[1735760735214,0.29892,3353.6,3353.4,0.29893]
[1735760737018,0.4569,3353.7,3353.5,0.29892]
[1735760737218,3.2078,3353.8,3353.3,40.8]
[1735760737418,3.5067,3353.8,3353.6,0.29891]
[1735760739518,3.5067,3353.8,3353.3,41.2535]
[1735760739519,3.2078,3353.8,3353.3,40.8]
[1735760739910,5.46831911,3353.8,3353.2,0.9044]